Cogmind - Beta 14 @@@ ROGUE MODE // 2024.11.21 @ 17:17:28 Player: Elisius Result: Destroyed by G-47 Trooper with Particle Gun Performance ------------- Evolutions (0) 0 Regions Visited (2) 400 Robots Destroyed (3) 15 Value Destroyed (115) 115 Prototype IDs (0) 0 Alien Tech Used (0) 0 Bonus (0) 0 TOTAL SCORE: 530 Bonus ------- None Cogmind --------- Core Integrity 0/250 Matter 256/300 Energy 125/125 System Corruption 0% Temperature Cool (95) Movement Walking (120) Location -10/Mines Parts ------- > --- POWER (1) -------- Light Ion Engine > --- PROPULSION (2) --- Light Treads Aluminum Leg > --- UTILITY (2) ------ Small Storage Unit > --- WEAPON (2) ------- Medium Laser > --- INVENTORY (8) ---- Light Treads Aluminum Leg Aluminum Leg Wheel Compact Wheel Peak State ------------ > --- POWER ------------ Light Ion Engine > --- PROPULSION ------- Aluminum Leg Aluminum Leg > --- UTILITY ---------- Small Storage Unit > --- WEAPON ----------- Medium Laser Assault Rifle > --- INVENTORY -------- Light Treads Light Treads EM Pulse Gun [Rating: 6] Favorites ----------- Power Ion Engine Engine Ion Engine Propulsion Aluminum Leg Treads Light Treads Leg Aluminum Leg Utility Small Storage Unit Storage Small Storage Unit Weapon Assault Rifle Energy Gun Medium Laser Ballistic Gun Assault Rifle Build | -11 -10 -10 ------- Run | Yrd Mat Min Slots Evolved . | . . . Power . | . . . Propulsion . | . . . Utility . | . . . Weapon . | . . . Parts Attached 13 | 8 3 2 Power 3 | 2 . 1 Engine 3 | 2 . 1 Core . | . . . Reactor . | . . . Propulsion 5 | 3 2 . Treads 2 | 1 1 . Leg 3 | 2 1 . Wheel . | . . . Hover . | . . . Flight . | . . . Utility 1 | 1 . . Device . | . . . Storage 1 | 1 . . Processor . | . . . Hackware . | . . . Protection . | . . . Artifact . | . . . Weapon 4 | 2 1 1 Energy Gun 3 | 1 1 1 Energy Cannon . | . . . Ballistic Gun 1 | 1 . . Ballistic Cannon . | . . . Launcher . | . . . Special Weapon . | . . . Impact Weapon . | . . . Slashing Weapon . | . . . Piercing Weapon . | . . . Special Melee Weapon . | . . . Unidentified Prototypes . | . . . Parts Lost 5 | . 4 1 Power 1 | . 1 . Propulsion 2 | . 2 . Utility . | . . . Weapon 2 | . 1 1 Highest Loss Streak 4 | . 4 1 To Critical Strikes . | . . . Average Slot Usage (%) 64 | . 66 59 Engine 4 | . 5 2 Treads 8 | . 5 14 Leg 17 | . 18 14 Storage 14 | . 14 14 Energy Gun 6 | . 7 2 Ballistic Gun 13 | . 14 11 Peak Build Rating 6 | 6 6 5 Average Rating 4 | 4 4 4 On Entrance 3 | . 6 4 Naked Turns . | . . . Heaviest Build 14 | 14 14 7 Greatest Support 20 | 20 20 10 Greatest Overweight (x) 2 | . 2 . Average Overweight (x) . | . . . Largest Inventory Capacity 8 | 8 8 8 Average Capacity 7 | 6 8 8 Most Carried 8 | 6 8 7 Average Carried 5 | 3 6 6 Final Capacity 8 | 8 8 8 Final Carried 7 | 6 7 5 Class Distribution -------------------- 100% | Mutant Dominant Class ---------------- Mutant | -10/Materials Mutant | -10/Mines Resources | -11 -10 -10 ----------- Run | Yrd Mat Min Matter Collected 322 | 219 103 . Remotely . | . . . Salvage Created 103 | . 103 . Parts 5 | . 5 . Haulers Intercepted . | . . . Recyclers Shooed . | . . . Parts Field Recycled . | . . . Retrieved Matter . | . . . Parts Self-Destructed . | . . . Prevented . | . . . Kills | -11 -10 -10 ------- Run | Yrd Mat Min Combat Hostiles Destroyed 3 | . 3 . Guns 3 | . 3 . Classes Destroyed 1 | . 1 . Grunt 3 | . 3 . Best Kill Streak 1 | . 1 . Combat Bots Only 1 | . 1 . Max Kills in Single Turn 1 | . 1 . Gunslinging . | . . . Exploded . | . . . Melee . | . . . Uniques/NPCs Destroyed . | . . . Combat | -11 -10 -10 -------- Run | Yrd Mat Min Hostile Shots Fired 79 | . 66 13 Missed 14 | . 10 4 Damage Taken 899 | . 777 122 Core 256 | . 240 16 Absorbed by Shields . | . . . Core Remaining (%) 100 | 100 . . Volleys Fired 29 | . 21 8 Largest 2 | . 2 1 Hottest 70 | . 70 50 Shots Fired 44 | . 36 8 Gun 44 | . 36 8 Cannon . | . . . Launcher . | . . . Special . | . . . Kinetic 23 | . 21 2 Thermal 18 | . 12 6 Explosive . | . . . Electromagnetic 3 | . 3 . Robot Hit Streak 7 | . 4 7 Robot Miss Streak 2 | . 2 1 Penetration Max . | . . . Secondary Targets . | . . . Shots Hit Robots 32 | . 25 7 Core Hits 9 | . 8 1 Critical Kills . | . . . Critical Parts Destroyed . | . . . Critical Strikes 2 | . 1 1 Burn 2 | . 1 1 Melee Attacks . | . . . Impact . | . . . Slashing . | . . . Piercing . | . . . Sneak Attacks . | . . . Combat Hostiles . | . . . Follow-up Attacks . | . . . Damage Inflicted 460 | . 372 88 Guns 415 | . 327 88 Cannons . | . . . Explosions 40 | . 40 . Melee . | . . . Ramming 5 | . 5 . Kinetic 239 | . 212 27 Thermal 189 | . 128 61 Explosive . | . . . Electromagnetic 27 | . 27 . Impact . | . . . Slashing . | . . . Piercing . | . . . Highest Corruption . | . . . Average Corruption . | . . . Corruption Purged . | . . . Corruption Blocked . | . . . Overload Shots . | . . . Overflow Damage . | . . . Projectiles . | . . . Explosions . | . . . Melee . | . . . Knockbacks . | . . . Impact . | . . . Kinetic . | . . . Secondary . | . . . Self-Inflicted Damage 52 | . 52 . Shots 1 | . 1 . Rammed 1 | . 1 . Targets Rammed 3 | . 3 . Kicked 2 | . 2 . Crushed . | . . . Highest Temperature 232 | . 232 86 Average Temperature 96 | . 107 42 Received Heat Transfer 531 | . 441 90 Siege Activations . | . . . Robots Corrupted . | . . . Combat Hostiles . | . . . Parts Fried . | . . . Impact Corruptions . | . . . Robots Melted . | . . . Combat Hostiles . | . . . Parts Melted . | . . . Heat Transferred 642 | . 383 259 Parts Sabotaged . | . . . Parts Stolen . | . . . Parts Stripped . | . . . Power Chain Reactions 1 | . 1 . Alert | -11 -10 -10 ------- Run | Yrd Mat Min Peak Influence 61 | . 61 23 Initial 23 | . . 23 Average 20 | . 30 20 Maximum Alert Level . | . . . Low Security (%) 100 | 100 100 100 Level 1 . | . . . Level 2 . | . . . Level 3 . | . . . Level 4 . | . . . Level 5 . | . . . High Security . | . . . Max Security . | . . . Squads Dispatched 1 | . 1 . Investigation . | . . . Extermination . | . . . Reinforcement 1 | . 1 . Assault . | . . . Garrison . | . . . Intercept . | . . . Searches Triggered . | . . . Construction Impeded . | . . . Haulers Reinforced . | . . . Active Scanning Responses . | . . . Cargo Convoy Interrupts . | . . . Stealth | -11 -10 -10 --------- Run | Yrd Mat Min Distress Signals 2 | . 2 . Communications Jammed . | . . . Distress Signals . | . . . Times Spotted 9 | . 7 2 Peak Tracking Total 4 | . 4 2 Tactical Retreats . | . . . Traps | -11 -10 -10 ------- Run | Yrd Mat Min Traps Triggered . | . . . Indirectly . | . . . Trap Hack Attempts . | . . . Triggered . | . . . Disarmed . | . . . Reprogrammed . | . . . Reused . | . . . Traps Extracted . | . . . Installed . | . . . Triggered . | . . . Machines | -11 -10 -10 ---------- Run | Yrd Mat Min Machines Disabled . | . . . Max in Single Turn . | . . . Machines Repaired . | . . . Machines Dismantled . | . . . Machines Sabotaged . | . . . Overloaded Fab Kills . | . . . Hacking | -11 -10 -10 --------- Run | Yrd Mat Min Machines Accessed . | . . . Terminals . | . . . Fabricators . | . . . Repair Stations . | . . . Recycling Units . | . . . Scanalyzers . | . . . Garrison Access . | . . . Total Hacks . | . . . Successful . | . . . Failed . | . . . Catastrophic . | . . . Database Lockouts . | . . . Manual . | . . . Terminals . | . . . Fabricators . | . . . Repair Stations . | . . . Recycling Units . | . . . Scanalyzers . | . . . Garrison Access . | . . . Terminal Hacks . | . . . Fabricator Hacks . | . . . Repair Station Hacks . | . . . Recycling Unit Hacks . | . . . Scanalyzer . | . . . Garrison Access Hacks . | . . . Unauthorized Hacks . | . . . Terminals . | . . . Fabricators . | . . . Repair Stations . | . . . Recycling Units . | . . . Scanalyzers . | . . . Garrison Access . | . . . Data Cores Recovered . | . . . Used . | . . . Hacking Detections . | . . . Full Trace Events . | . . . Feedback Events . | . . . Feedback Blocked . | . . . Robot Schematics Acquired . | . . . Robots Built . | . . . Authchips . | . . . Time . | . . . Total Robot Build Rating . | . . . Part Schematics Acquired . | . . . Parts Built . | . . . Authchips . | . . . Time . | . . . Total Part Build Rating . | . . . Parts Repaired . | . . . Time . | . . . Parts Recycled . | . . . Recycled Matter . | . . . Retrieved Matter . | . . . Retrieved Components . | . . . Parts Scanalyzed . | . . . Part Schematics Acquired . | . . . Parts Damaged . | . . . Bothacking | -11 -10 -10 ------------ Run | Yrd Mat Min Used RIF Installer . | . . . Robots Hacked . | . . . Non-combat . | . . . Combat . | . . . Robot Hacks Applied . | . . . Relay Couplers Released . | . . . Fabnet Peak Effective % . | . . . Robots Rewired . | . . . Allies Hacked . | . . . Hacks Repelled . | . . . Allies | -11 -10 -10 -------- Run | Yrd Mat Min Total Allies . | . . . Largest Group . | . . . Highest-Rated Group . | . . . Highest-Rated Ally . | . . . Total Orders . | . . . Ally Attacks . | . . . Total Damage . | . . . Kills . | . . . Allies Corrupted . | . . . Allies Melted . | . . . Intel | -11 -10 -10 ------- Run | Yrd Mat Min Robot Analysis Total . | . . . Derelict Logs Recovered . | . . . Drone Launches . | . . . Drone Recoveries . | . . . Exploration | -11 -10 -10 ------------- Run | Yrd Mat Min Turns Passed 297 | 79 153 65 Spaces Moved 167 | 57 71 39 Core 11 | 8 3 . Treads 2 | 2 . . Legs 154 | 47 68 39 Wheels . | . . . Hover . | . . . Flight . | . . . Fastest Speed 50 | 50 120 120 Average Speed 117 | 111 121 120 Slowest Speed 160 | 160 150 120 Overloaded Moves . | . . . Propulsion Burnouts . | . . . Robots Hopped . | . . . Cave-ins Triggered . | . . . Exploration Rate (%) 7 | 3 13 7 Regions Visited 2 Branch Regions 1 Pre-discovered Areas . | . . . Known Exits Taken . | . . . Unknown Exits Taken 2 | 1 1 . Scrap Searched . | . . . Spaces Dug . | . . . Terrain Destroyed 5 | . 5 . Melee . | . . . Projectile . | . . . AOE 5 | . 5 . Terrain Rammed . | . . . Walls Destroyed . | . . . Machines Disabled . | . . . Actions | -11 -10 -10 --------- Run | Yrd Mat Min Total 218 | 69 100 49 Wait . | . . . Move 165 | 56 70 39 Hop . | . . . Pick Up 7 | 4 3 . Fast Attach 7 | 7 . . Attach 4 | . 2 2 Detach 1 | 1 . . Swap 2 | 1 1 . Drop . | . . . Fire 29 | . 21 8 Melee . | . . . Ram 1 | . 1 . Kick 2 | . 2 . Crush . | . . . Escape Stasis . | . . . Rewire . | . . . Trap . | . . . Miscellaneous . | . . . Route ------- -11/Scrapyard -10/Materials -10/Mines History --------- Turn | Location | Event 10 | -11/Scrapyard | Discovered new exit (range 15) 80 | -11/Scrapyard | Entered Materials 157 | -10/Materials | Core integrity fell below 50% 176 | -10/Materials | Core integrity fell below 20% 199 | -10/Materials | Lost 4 parts (1p2n1w) 223 | -10/Materials | Discovered new exit (range 7) 233 | -10/Materials | Entered Mines 298 | -10/Mines | Destroyed by G-47 Trooper with Particle Gun Last Messages --------------- U-05 Engineer builds a Wall. Acquired Aluminum Leg. U-05 Engineer lays Concrete. U-05 Engineer builds a Wall. The unstable cave ceiling collapses. U-05 Engineer builds a Wall. G-34 Mercenary destroyed. U-05 Engineer builds a Door. U-05 Engineer builds a Wall. Acquired Aluminum Leg. U-05 Engineer lays Concrete. Kicked U-05 Engineer. Acquired 71 matter. U-05 Engineer lays Concrete. EXIT=FOUND LOCATION=UNKNOWN GOAL=ESCAPE Critical hit (Burn: +37). Assault Rifle destroyed. G-47 Trooper suffers critical hit (Burn). Map ----- +----------------------------------------------------+ | ????????????????????????????????????? | | ????????????????????????????????????? | | ????????????????????????????????????? | | ????????????????????????????????????? | | ????????????????????????????????????? | | ????????????????????????????????????? | | ????????????????????????????????????? | | ????????????????????????????????????? | | ????????????????????????????????????? | | ????????????????????????????????????? | | ????????????????????????????????????? | | ????????????????????????????????????? | | ????????????????????????????????????? | | ????????????????????????????????????? | | ?????????????? ??????????#####????? | | ??????????????# ?????????# ##???? | | ??????????????# ??# ???# ##??? | | ?????????????## #?# ???## ##?? | | ?????????????# ## ????# #?? | | ?????????????# ##### #?? | | ?????????????# #?? | | ??????????????# gg """ #?? | | ??????????????????# """ ##?? | | ???????????????????# """ ####??? | | ????????????????????# ##?????? | | ????????????????????# @ ##?????? | | ????????????????????###### ##????? | | ?????????????????????????## #????? | | ??????????????????????????# #????? | | ??????????????????????????# #????? | | ??????????????????????????# ##????? | | ?????????????????????????## ##?????? | | ?????????????????????????# #??????? | | ????????????????????????# #??????? | | ????????????????????????## ##??????? | | ?????????????????????????###????????? | | ????????????????????????????????????? | | ????????????????????????????????????? | | ????????????????????????????????????? | | ????????????????????????????????????? | | ????????????????????????????????????? | | ????????????????????????????????????? | | ????????????????????????????????????? | | ????????????????????????????????????? | | ????????????????????????????????????? | | ????????????????????????????????????? | | ????????????????????????????????????? | | ????????????????????????????????????? | | ????????????????????????????????????? | | ????????????????????????????????????? | +----------------------------------------------------+ Best States ------------- Heat Dissipation 25 Energy Generation 10 Energy Capacity 250 Matter Stores 277 Matter Capacity 300 Sight Range 16 Terrain Scan Density 10 Evasion (%) 55 Recoil Reduction 1 Item Schematics ----------------- None Robot Schematics ------------------ None Fabricated ------------ Nothing Alien Tech Used ----------------- None Achievements -------------- None Challenges ------------ None Game ------ Seed MappingMobileCasing Manual? 0 Play Time 00:02:50 Cumulative 5.7 hours Start 2024.11.21 @ 17:15:04 End 2024.11.21 @ 17:17:28 Sessions 1 Manual Loads 0 Difficulty Rogue Special Mode None Game No. 9 Rogue 9 Adventurer 0 Explorer 0 Win Type - Total 0 Types 0/0/0/0/0/0/0/0/0 Lore% 3 Gallery% 12 Achievement% 11 Wizard Run 0 Options --------- Layout 0 ASCII 0 Keyboard 1 Movement Vi Keybinds 0 Fullscreen 1 Font 24/Smallcaps Map View 76x50 Zoom Use 0% Tactical HUD 0 Map Filters NONE Filters NONE Steam 1 RUN: c6b6ab4e-dbaf-48d0-81f0-a4118e45532e